bitfinex/quotes_ETHUSD_20230113
["timestamp","ask_amount","ask_price","bid_price","bid_amount"]
[1673609418592,19.72508727,1412.6,1412.3,25.02185287]
[1673609418799,23.33141999,1412.6,1412.3,25.02185287]
[1673609419123,23.33141999,1412.6,1412.3,24.97185287]
[1673609419124,16.79403272,1412.6,1412.3,24.97185287]
[1673609419453,16.79403272,1412.6,1412.5,7.07964]
[1673609419454,17.04171954,1412.6,1412.5,7.07964]
[1673609419658,3.92001954,1412.6,1412.5,7.14318154]
[1673609420003,3.85401954,1412.6,1412.5,7.14318154]
[1673609420486,3.85401954,1412.6,1412.5,14.22282154]
[1673609421059,4.08401954,1412.6,1412.5,14.22282154]
[1673609421248,0.24768682,1412.6,1412.5,23.83284622]
[1673609423230,0.24768682,1412.6,1412.5,7.14318154]
[1673609423445,0.47768682,1412.6,1412.5,7.14318154]
[1673609425439,4.08401954,1412.6,1412.5,7.14318154]
[1673609428116,0.47768682,1412.6,1412.5,21.30246154]
[1673609428294,0.24768682,1412.6,1412.5,21.30246154]
[1673609428504,0.24768682,1412.6,1412.5,26.01942677]
[1673609428918,3.85401954,1412.6,1412.5,21.30246154]
[1673609429280,4.08401954,1412.6,1412.5,0.06354154]
[1673609429439,4.08401954,1412.6,1412.4,24.43073231]
[1673609430910,4.08401954,1412.6,1412.4,31.51087231]
[1673609433485,4.08401954,1412.6,1412.4,44.44380714]
[1673609434953,0.24768682,1412.6,1412.4,45.95080714]
[1673609435368,14.05827066,1412.7,1412.4,47.0075444]
[1673609436107,14.05827066,1412.7,1412.4,46.7015444]
[1673609436305,14.05827066,1412.7,1412.6,14.15828]
[1673609436474,0.34907066,1412.7,1412.6,21.30096154]
[1673609436680,0.28307066,1412.7,1412.6,21.30096154]
[1673609438096,0.28307066,1412.7,1412.6,22.49196154]
[1673609438365,12.558,1412.9,1412.6,23.83892622]
[1673609438531,16.16433272,1412.9,1412.6,23.83892622]
[1673609438749,16.16433272,1412.9,1412.7,1.193]
[1673609438750,0.066,1412.9,1412.7,1.193]
[1673609439060,2.69146319,1413.1,1412.8,21.23442]
[1673609439061,24.86736319,1413.1,1412.8,21.23442]
[1673609439250,3.60633272,1413.0,1412.8,21.29796154]
[1673609442280,3.60633272,1413.0,1412.8,21.29541167]
[1673609444391,4.3966927,1413.0,1412.8,21.29541167]
[1673609447148,4.3966927,1413.0,1412.8,19.42233655]
[1673609447149,24.3966927,1413.0,1412.8,19.42233655]
[1673609447361,24.4626927,1413.0,1412.8,19.42233655]
[1673609449415,23.67233272,1413.0,1412.8,19.42233655]
[1673609450772,20.066,1413.0,1412.8,19.42233655]
[1673609457121,21.12341062,1413.0,1412.8,19.42233655]
[1673609457518,24.72974334,1413.0,1412.8,12.34419655]
[1673609457740,2.47297433,1412.9,1412.8,5.26605655]
[1673609459873,2.47297433,1412.9,1412.8,12.34419655]
[1673609461506,3.53038495,1412.9,1412.8,5.26605655]
[1673609461873,3.76038495,1412.9,1412.8,5.26605655]
[1673609462026,5.51646811,1412.9,1412.8,5.26605655]
[1673609462238,5.58246811,1412.9,1412.8,5.26605655]
[1673609462890,9.18880083,1412.9,1412.8,0.06354154]
[1673609463111,9.18880083,1412.9,1412.7,17.35089231]
[1673609463434,7.56883952,1412.8,1412.7,0.06354154]
[1673609463597,7.56883952,1412.8,1412.6,0.06354154]
[1673609463598,7.63483952,1412.8,1412.6,0.06354154]
[1673609463812,3.60633272,1412.7,1412.5,17.35089231]
[1673609464073,3.83633272,1412.6,1412.5,17.35089231]
[1673609466352,3.83633272,1412.6,1412.5,24.43053231]
[1673609466574,3.83633272,1412.6,1412.5,17.35089231]
[1673609466575,17.99461272,1412.6,1412.5,17.35089231]
[1673609466875,10.98147272,1412.6,1412.5,17.35089231]
[1673609467101,13.59531755,1412.6,1412.5,15.47735138]
[1673609467334,7.57358817,1412.6,1412.5,15.47735138]
[1673609467526,3.90233272,1412.6,1412.5,15.47735138]
[1673609467733,0.23,1412.6,1412.5,29.63663138]
[1673609469169,0.23,1412.6,1412.5,14.22282154]
[1673609470880,3.945,1412.6,1412.5,14.22282154]
[1673609471635,0.23,1412.6,1412.5,14.22282154]
[1673609471946,3.83633272,1412.6,1412.5,14.22282154]
[1673609472157,4.57306599,1412.6,1412.5,0.06354154]
[1673609472390,4.57306599,1412.6,1412.4,14.22344154]
[1673609472592,4.57306599,1412.6,1412.4,7.14347154]
[1673609473211,4.57306599,1412.6,1412.4,14.22361154]
[1673609475484,0.37112206,1412.5,1412.4,14.22361154]
[1673609475697,0.60112206,1412.5,1412.4,14.22361154]
[1673609476210,4.14312206,1412.5,1412.4,14.22361154]
[1673609476462,4.14312206,1412.5,1412.4,7.14347154]
[1673609477073,2.41712206,1412.5,1412.4,7.14347154]
[1673609477296,0.60112206,1412.5,1412.4,7.14347154]
[1673609478253,0.60112206,1412.5,1412.4,0.06354154]
[1673609478254,8.25047358,1412.5,1412.4,0.06354154]
[1673609478465,8.25047358,1412.5,1412.2,29.80419052]
[1673609478466,22.06307358,1412.5,1412.2,29.80419052]
[1673609478643,3.83633272,1412.4,1412.2,29.80419052]
[1673609481367,23.83633272,1412.4,1412.2,29.80419052]
[1673609481573,23.90233272,1412.4,1412.2,29.80419052]
[1673609482237,27.92704008,1412.4,1412.2,29.80419052]
[1673609483481,27.92704008,1412.4,1412.2,29.80219052]
[1673609483692,23.90233272,1412.4,1412.2,29.80419052]
[1673609484574,23.90233272,1412.4,1412.2,22.72314052]
[1673609484781,23.90233272,1412.4,1412.2,15.64234052]
[1673609484782,30.98255272,1412.4,1412.2,15.64234052]
[1673609485311,3.60633272,1412.3,1412.2,15.64234052]
[1673609485530,6.33633272,1412.3,1412.2,15.64234052]
[1673609485675,7.98163999,1412.3,1412.2,15.64234052]
[1673609486046,7.98163999,1412.3,1412.2,0.22853068]
[1673609486220,15.06227999,1412.3,1412.2,0.16498914]
[1673609487283,22.14291999,1412.3,1412.2,0.16498914]
[1673609488550,22.13974885,1412.3,1412.2,0.16498914]
[1673609489710,26.38574885,1412.3,1412.2,0.16498914]
[1673609489919,6.746,1412.2,1412.1,0.15069537]
[1673609490120,37.4564276,1412.2,1412.1,0.15069537]
[1673609490529,33.7554276,1412.2,1412.1,0.15069537]
[1673609490766,47.5446276,1412.2,1412.1,0.15069537]
[1673609491424,46.3506276,1412.2,1412.1,0.15069537]
[1673609492360,46.34759392,1412.2,1412.1,0.15069537]
[1673609492906,20.8612076,1412.2,1412.1,0.15069537]
[1673609493057,17.99263272,1412.2,1412.1,0.15069537]
[1673609494530,25.07377272,1412.2,1412.1,0.15069537]
[1673609494948,25.30377272,1412.2,1412.1,0.15069537]
[1673609496000,32.38491272,1412.2,1412.1,0.15069537]
[1673609496740,43.71205272,1412.2,1412.1,0.15069537]
[1673609496960,50.89234998,1412.2,1412.1,0.15069537]
[1673609497145,52.09234998,1412.2,1412.1,0.15069537]
[1673609497608,69.09234998,1412.2,1412.1,0.15069537]
[1673609498514,81.92114174,1412.2,1412.1,0.15069537]
[1673609498937,29.05586536,1412.0,1411.9,0.16498914]
[1673609499145,56.75317362,1412.0,1411.9,0.16498914]
[1673609499407,61.34796966,1412.0,1411.9,0.16498914]
[1673609499621,62.39954406,1412.0,1411.9,0.16498914]
[1673609499786,67.88535693,1412.0,1411.9,0.16498914]
[1673609500005,87.88535693,1412.0,1411.9,0.16498914]
[1673609501071,83.29056089,1412.0,1411.9,0.16498914]
[1673609501404,87.88535693,1412.0,1411.9,0.16498914]
[1673609502036,90.69435259,1412.0,1411.9,0.16498914]
[1673609502413,87.88535693,1412.0,1411.9,0.16498914]
[1673609502824,83.29056089,1412.0,1411.9,0.16498914]
[1673609503051,89.08635693,1412.0,1411.9,0.16498914]
[1673609503246,8.47389504,1411.9,1411.8,0.16888146]
[1673609503457,6.746,1411.8,1411.7,0.15914439]
[1673609503666,73.73985514,1411.8,1411.7,0.15914439]
[1673609503934,77.81916241,1411.8,1411.7,0.15914439]
[1673609504154,6.746,1411.7,1411.6,0.17141183]
[1673609504452,20.9143,1411.6,1411.5,0.15884194]
[1673609504663,39.34803272,1411.6,1411.5,0.15884194]
[1673609504879,49.88720673,1411.6,1411.5,0.15884194]
[1673609505198,39.10405673,1411.6,1411.5,0.15884194]
[1673609505424,17.67233272,1411.6,1411.5,0.15884194]
[1673609505881,36.08663272,1411.6,1411.5,0.15884194]
[1673609506397,31.29386999,1411.6,1411.5,0.15884194]
[1673609506856,31.52386999,1411.6,1411.5,0.15884194]
[1673609507027,41.60801999,1411.6,1411.5,0.15884194]
[1673609507283,66.97199241,1411.6,1411.5,0.15884194]
[1673609507590,67.50339241,1411.6,1411.5,0.15884194]
[1673609507919,68.21052104,1411.6,1411.5,0.15884194]
[1673609508373,63.63229862,1411.6,1411.5,0.15884194]
[1673609508815,62.92516999,1411.6,1411.5,0.15884194]
[1673609509237,53.45801999,1411.6,1411.5,0.15884194]
[1673609509444,52.92661999,1411.6,1411.5,0.15884194]
[1673609509863,41.37801999,1411.6,1411.5,1e-08]
[1673609510108,24.20971999,1411.6,1411.5,1e-08]
[1673609510710,31.29386999,1411.6,1411.5,1e-08]
[1673609510920,24.20971999,1411.6,1411.5,1e-08]
[1673609511172,57.86782199,1411.6,1411.5,1e-08]
[1673609511387,58.39922199,1411.6,1411.5,1e-08]
[1673609512315,58.62922199,1411.6,1411.5,1e-08]
[1673609512703,58.09782199,1411.6,1411.5,1e-08]
[1673609512925,61.02522199,1411.6,1411.5,1e-08]
[1673609513830,65.60344441,1411.6,1411.5,1e-08]
[1673609514120,61.02522199,1411.6,1411.5,1e-08]
[1673609516911,59.83022199,1411.6,1411.5,1e-08]
[1673609519673,65.60944441,1411.6,1411.5,1e-08]
[1673609520061,61.03122199,1411.6,1411.5,1e-08]
[1673609520709,65.60944441,1411.6,1411.5,1e-08]
[1673609520908,61.03122199,1411.6,1411.5,1e-08]
[1673609521120,65.60944441,1411.6,1411.5,1e-08]
[1673609521388,61.03122199,1411.6,1411.4,0.1571444]
[1673609521698,42.67183492,1411.5,1411.4,0.1571444]
[1673609521907,85.19693492,1411.5,1411.4,0.1571444]
[1673609524056,83.99593492,1411.5,1411.4,0.1571444]
[1673609524298,83.46453492,1411.5,1411.4,0.1571444]
[1673609525121,88.04275734,1411.5,1411.4,0.1571444]
[1673609525316,83.46453492,1411.5,1411.4,0.1571444]
[1673609526395,84.65753492,1411.5,1411.4,0.1571444]
[1673609526611,89.37417564,1411.5,1411.4,0.0001444]
[1673609527260,28.00148,1411.4,1411.3,0.16483175]
[1673609527414,55.16241859,1411.4,1411.3,0.16483175]
[1673609527625,55.86954722,1411.4,1411.3,0.16483175]
[1673609527838,56.40094722,1411.4,1411.3,0.16483175]
[1673609528095,61.84729756,1411.4,1411.3,0.16483175]
[1673609528302,63.43181533,1411.4,1411.3,0.16483175]
[1673609529122,61.84729756,1411.4,1411.3,0.16483175]
[1673609529329,4.246,1411.2,1411.1,0.16668735]
[1673609529544,40.45565272,1411.2,1411.1,0.16668735]
[1673609529805,55.88297272,1411.2,1411.1,7.35e-06]
[1673609530015,3.59613333,1410.7,1410.6,15.66003725]
[1673609530197,21.60980605,1410.7,1410.6,15.66003725]
[1673609530401,21.67580605,1410.7,1410.6,0.24622741]
[1673609530592,21.67580605,1410.7,1410.6,0.18268587]
[1673609530808,35.67580605,1410.7,1410.6,0.18268587]
[1673609531032,38.67580605,1410.7,1410.6,0.18268587]
[1673609531245,50.97469941,1410.7,1410.6,0.18268587]
[1673609531493,10.49385332,1410.7,1410.6,0.18268587]
[1673609532728,17.58252332,1410.7,1410.6,0.18268587]
[1673609533122,24.67119332,1410.7,1410.6,0.18268587]
[1673609534588,39.00586332,1410.7,1410.6,0.18268587]
[1673609535273,40.20086332,1410.7,1410.6,0.18268587]
[1673609535481,47.38116058,1410.7,1410.6,0.18268587]
[1673609535853,46.18616058,1410.7,1410.6,0.18268587]
[1673609536100,47.37916058,1410.7,1410.6,0.18268587]
[1673609536704,47.91086058,1410.7,1410.6,0.18268587]
[1673609537176,49.11186058,1410.7,1410.6,0.18268587]
[1673609537376,7.82826285,1410.5,1410.4,0.01118]
[1673609537592,60.01111557,1410.5,1410.4,0.01118]
[1673609537846,60.7182442,1410.5,1410.4,0.01118]
[1673609538062,6.746,1410.4,1410.3,0.8383887]
[1673609538233,7.85233272,1410.1,1409.7,0.06]
[1673609538440,7.85233272,1410.1,1409.3,0.06]
[1673609538441,7.443,1409.7,1409.3,0.06]
[1673609538691,7.85233272,1409.4,1409.2,0.0102474]
[1673609538854,3.83633272,1409.3,1409.2,0.0102474]
[1673609539061,3.64912869,1409.3,1409.2,0.0102474]
[1673609539318,33.66508156,1409.3,1409.2,0.0102474]
[1673609539532,41.50728156,1409.3,1409.2,0.0102474]
[1673609539909,20.066,1409.3,1409.2,0.0102474]
[1673609540146,20.066,1409.3,1409.2,7.1064674]
[1673609540320,26.60338727,1409.3,1409.2,0.5985474]
[1673609540530,3.67233272,1409.3,1409.2,0.0102474]
[1673609540756,3.60633272,1409.3,1409.2,2.4052474]
[1673609540997,3.60633272,1409.3,1409.2,2.89619446]
[1673609541155,0.066,1409.4,1409.2,2.89619446]
[1673609541365,17.0776,1409.6,1409.3,1.194]
[1673609541576,3.60633272,1409.5,1409.4,1.189]
[1673609541789,0.066,1409.6,1409.4,2.39]
[1673609542000,3.60633272,1409.6,1409.5,1.44]
[1673609542479,0.066,1409.7,1409.5,2.632]
[1673609542719,3.60633272,1409.7,1409.5,2.739]
[1673609543084,0.066,1409.8,1409.5,2.739]
[1673609543315,6.60338727,1410.0,1409.7,1.191]
[1673609543533,10.20971999,1410.0,1409.9,1.197]
[1673609543988,3.67233272,1410.0,1409.9,1.197]
[1673609544149,3.60633272,1410.0,1409.9,1.197]
[1673609544623,14.066,1410.1,1409.9,2.6375]
[1673609544624,0.066,1410.1,1409.9,2.6375]
[1673609544829,6.60338727,1410.3,1410.0,2.392]
[1673609545001,6.60338727,1410.3,1410.1,1.193]
[1673609545002,3.60633272,1410.2,1410.1,1.193]
[1673609545398,17.60633272,1410.2,1409.9,1.267]
[1673609545613,3.60633272,1410.1,1409.9,1.201]
[1673609546249,14.066,1410.2,1409.9,1.201]
[1673609546250,0.066,1410.2,1409.9,1.201]
[1673609546499,0.066,1410.2,1409.9,8.29367]
[1673609546500,3.60633272,1410.2,1409.9,8.29367]
[1673609546671,3.60633272,1410.2,1410.1,1.191]
[1673609547298,0.066,1410.3,1410.1,2.383]
[1673609547511,6.64365012,1410.5,1410.2,2.6403]
[1673609547766,3.60633272,1410.4,1410.3,1.191]
[1673609547976,3.67233272,1410.5,1410.3,1.191]
[1673609548299,3.60633272,1410.5,1410.3,1.191]
[1673609549660,3.60633272,1410.5,1410.2,0.066]
[1673609549661,7.09068,1410.3,1410.2,0.066]
[1673609549817,7.09068,1410.3,1409.9,0.066]
[1673609549818,20.59605299,1410.2,1409.9,0.066]
[1673609550028,0.61291198,1409.8,1409.7,0.014]
[1673609550241,0.61291198,1409.8,1409.6,7.09416]
[1673609550559,0.61291198,1409.8,1409.6,8.541308]
[1673609550766,0.61291198,1409.8,1409.6,11.041308]
[1673609550983,0.61291198,1409.8,1409.6,8.541308]
[1673609551570,0.61291198,1409.8,1409.7,9.4817]
[1673609551780,0.61291198,1409.8,1409.7,19.0794]
[1673609551956,0.61291198,1409.8,1409.7,25.0205808]
[1673609552163,1.198e-05,1409.8,1409.7,25.0549008]
[1673609552738,1.198e-05,1409.8,1409.7,25.5870008]
[1673609553854,1.198e-05,1409.8,1409.7,25.4516008]
[1673609554066,1.46701198,1409.8,1409.7,18.3579008]
[1673609554398,1.198e-05,1409.8,1409.7,8.32302]
[1673609554614,1.46701198,1409.8,1409.7,8.32302]
[1673609554940,1.198e-05,1409.8,1409.7,8.32302]
[1673609555685,1.198e-05,1409.8,1409.7,23.71042]
[1673609555876,2.23317299,1410.2,1409.8,2.5]
[1673609556045,2.16717299,1410.2,1410.1,1.197]
[1673609556260,2.16717299,1410.2,1410.1,8.28869]
[1673609556504,2.16717299,1410.2,1410.1,8.29269]
[1673609557985,2.16717299,1410.2,1410.1,15.38438]
[1673609558521,2.16717299,1410.2,1410.1,23.67707]
[1673609558675,2.16717299,1410.2,1410.1,26.879272]
[1673609562921,2.16717299,1410.2,1410.1,26.877272]
[1673609563238,2.16717299,1410.2,1410.1,26.879272]
[1673609563420,2.16717299,1410.2,1410.1,26.829272]
[1673609568778,2.16717299,1410.2,1410.1,26.827272]
[1673609569014,2.16717299,1410.2,1410.1,26.829272]
[1673609569218,2.16717299,1410.2,1410.1,24.481272]
[1673609570550,2.16717299,1410.2,1410.1,26.073272]
[1673609570759,2.16717299,1410.2,1410.1,26.023272]
[1673609571445,2.16717299,1410.2,1410.1,26.057582]
[1673609572542,2.16717299,1410.2,1410.1,29.057582]
[1673609574303,2.16717299,1410.2,1410.1,24.465582]
[1673609574543,2.16717299,1410.2,1410.1,21.26338]
[1673609577352,2.16717299,1410.2,1410.1,21.22907]
[1673609578213,2.16717299,1410.2,1410.1,7.04569]
[1673609579442,2.16717299,1410.2,1410.1,5.16898045]
[1673609579653,2.63389029,1410.2,1410.1,5.16898045]
[1673609580110,22.63389029,1410.2,1410.1,5.16898045]
[1673609580348,22.69989029,1410.2,1410.1,5.16898045]
[1673609580917,26.30622301,1410.2,1410.1,0.004]
[1673609581117,26.30622301,1410.2,1409.8,7.09282]
[1673609581118,27.06812301,1410.2,1409.9,7.09243]
[1673609581333,6.31314502,1410.1,1409.9,7.09643]
[1673609581629,6.37914502,1410.1,1409.9,0.004]
[1673609581909,6.37914502,1410.1,1409.8,21.2827]
[1673609582480,3.60633272,1410.0,1409.8,21.2827]
[1673609582952,3.60633272,1409.9,1409.8,7.09682]
[1673609583130,3.96696599,1409.9,1409.8,0.004]
[1673609583343,11.05966599,1409.9,1409.6,7.09784]
[1673609583581,11.12566599,1409.9,1409.6,7.09784]
[1673609583772,4.03296599,1409.9,1409.6,7.09784]
[1673609584139,4.00962932,1409.8,1409.6,7.09784]
[1673609584696,4.00962932,1409.8,1409.6,0.004]
[1673609584903,4.00962932,1409.8,1409.5,22.560326]
[1673609585156,4.13843272,1409.7,1409.5,0.22008874]
[1673609585476,9.94317599,1409.6,1409.5,0.21608874]
[1673609585808,11.61117599,1409.6,1409.5,0.21608874]
[1673609586162,9.11117599,1409.6,1409.5,0.21608874]
[1673609586409,11.61117599,1409.6,1409.5,0.21608874]
[1673609586624,18.70538599,1409.6,1409.5,0.21608874]
[1673609586942,16.20538599,1409.6,1409.5,0.21608874]
[1673609587105,20.45138599,1409.6,1409.5,0.21608874]
[1673609587320,9.11117599,1409.6,1409.5,0.21608874]
[1673609588166,25.61117599,1409.6,1409.5,0.21608874]
[1673609588416,26.14327599,1409.6,1409.5,0.21608874]
[1673609588593,33.23748599,1409.6,1409.5,0.21608874]
[1673609589007,51.67190599,1409.6,1409.5,0.21608874]
[1673609589220,51.67190599,1409.6,1409.5,8.874e-05]
[1673609589221,59.24432819,1409.6,1409.5,8.874e-05]
[1673609589428,56.27690599,1409.6,1409.5,8.874e-05]
[1673609589642,60.85018419,1409.6,1409.5,8.874e-05]
[1673609589854,80.85018419,1409.6,1409.5,8.874e-05]
[1673609590273,81.55731282,1409.6,1409.5,8.874e-05]
[1673609591129,76.98403462,1409.6,1409.5,8.874e-05]
[1673609592524,76.27690599,1409.6,1409.5,8.874e-05]
[1673609592841,78.46109613,1409.6,1409.5,8.874e-05]
[1673609593215,83.03351997,1409.6,1409.5,8.874e-05]
[1673609593443,90.47651997,1409.6,1409.5,8.874e-05]
[1673609593674,98.47651997,1409.6,1409.5,8.874e-05]
[1673609594313,9.94006738,1409.3,1409.2,0.010268]
[1673609594526,63.71968684,1409.3,1409.2,0.010268]
[1673609594836,64.42681547,1409.3,1409.2,0.010268]
[1673609595026,77.89961547,1409.3,1409.2,0.010268]
[1673609595203,82.83200274,1409.3,1409.2,0.010268]
[1673609595412,102.12487411,1409.3,1409.2,0.010268]
[1673609596318,6.746,1409.2,1409.1,0.19142723]
[1673609596480,24.32692998,1409.2,1409.1,0.19142723]
[1673609596720,45.84558998,1409.2,1409.1,0.19142723]
[1673609597857,44.25458998,1409.2,1409.1,0.19142723]
[1673609598550,32.32336998,1409.2,1409.1,0.19142723]
[1673609598716,32.23929272,1409.2,1409.1,0.19142723]
[1673609599127,33.84329272,1409.2,1409.1,0.19142723]
[1673609599595,33.84329272,1409.2,1408.9,1.70391744]
[1673609599596,25.53769,1409.0,1408.9,1.70391744]
[1673609599774,44.81502272,1409.0,1408.9,1.70391744]
[1673609599981,49.89975499,1409.0,1408.9,1.70391744]
[1673609600209,50.66215499,1409.0,1408.9,1.70391744]
[1673609600454,57.19954226,1409.0,1408.9,1.70391744]
[1673609600591,59.66714226,1409.0,1408.9,1.70391744]
[1673609601377,58.59454226,1409.0,1408.9,1.70391744]
[1673609601596,51.49731226,1409.0,1408.9,1.70391744]
[1673609601980,27.20971999,1409.0,1408.9,1.70391744]
[1673609603659,47.20971999,1409.0,1408.9,1.70391744]
[1673609603855,47.43971999,1409.0,1408.9,1.70391744]
[1673609604694,26.60338727,1409.0,1408.9,8.80164744]
[1673609604904,20.066,1409.0,1408.9,10.39561218]
[1673609605144,20.066,1409.0,1408.9,17.49334218]
[1673609605357,20.066,1409.0,1408.9,19.09834218]
[1673609606105,20.066,1409.0,1408.9,26.19607218]
[1673609606746,20.066,1409.0,1408.9,26.19407218]
[1673609606917,20.066,1409.0,1408.9,26.19607218]
[1673609608420,20.066,1409.0,1408.9,10.39561218]
[1673609609062,20.066,1409.0,1408.9,8.80564744]
[1673609610269,20.066,1409.0,1408.9,24.60610744]
[1673609613252,20.066,1409.0,1408.9,24.64044744]
[1673609614201,20.066,1409.0,1408.9,27.64044744]
[1673609614779,13.51301107,1409.0,1408.9,34.06434403]
[1673609615027,13.51301107,1409.0,1408.9,40.07338542]
[1673609615028,12.83621107,1409.0,1408.9,40.07338542]
[1673609615516,13.04268006,1409.0,1408.9,39.39322155]
[1673609615756,13.04268006,1409.0,1408.9,38.33648429]
[1673609615974,13.04268006,1409.0,1408.9,39.39322155]
[1673609616506,8.77463306,1409.0,1408.9,39.39322155]
[1673609617091,8.77463306,1409.0,1408.9,39.91588911]
[1673609617634,8.77463306,1409.0,1408.9,40.97264384]
[1673609617853,8.77463306,1409.0,1408.9,34.1819063]
[1673609618083,8.77463306,1409.0,1408.9,33.6495063]
[1673609618932,8.77463306,1409.0,1408.9,34.17215639]
[1673609619379,8.77463306,1409.0,1408.9,35.23013043]
[1673609620192,8.77463306,1409.0,1408.9,34.17215639]
[1673609621175,8.77263306,1409.0,1408.9,33.65090066]
[1673609621326,8.77463306,1409.0,1408.9,33.65090066]
[1673609622937,8.77463306,1409.0,1408.9,35.23030548]
[1673609623135,8.77463306,1409.0,1408.9,34.17215639]
[1673609624729,8.77463306,1409.0,1408.9,35.23126934]
[1673609624968,8.77463306,1409.0,1408.9,34.17215639]
[1673609625476,8.77463306,1409.0,1408.9,31.17215639]
[1673609627063,8.77463306,1409.0,1408.9,22.46942639]
[1673609627248,8.77463306,1409.0,1408.9,3.32366226]
[1673609627423,8.77463306,1409.0,1408.9,1.73825744]
[1673609627424,12.91336578,1409.0,1408.9,1.73825744]
[1673609627633,20.01059578,1409.0,1408.9,1.70391744]
[1673609628055,9.30703306,1409.0,1408.9,1.70391744]
[1673609629101,20.01059578,1409.0,1408.9,1.70391744]
[1673609629367,9.30703306,1409.0,1408.9,1.70391744]
[1673609629575,8.77463306,1409.0,1408.9,1.70391744]
[1673609630316,8.77463306,1409.0,1408.9,8.80164744]
[1673609630472,8.77463306,1409.0,1408.9,8.80764744]
[1673609630698,8.77463306,1409.0,1408.9,11.37798316]
[1673609630907,8.77463306,1409.0,1408.9,19.53593808]
[1673609631379,8.77463306,1409.0,1408.9,22.7063429]
[1673609631584,8.77463306,1409.0,1408.9,21.64611798]
[1673609631800,8.77463306,1409.0,1408.9,29.80418267]
[1673609632443,8.77463306,1409.0,1408.9,28.21318267]
[1673609632585,8.77463306,1409.0,1408.9,5.34058785]
[1673609632798,8.77463306,1409.0,1408.9,14.01772267]
[1673609633060,8.77463306,1409.0,1408.9,12.43831785]
[1673609633267,8.77463306,1409.0,1408.9,1.70991744]
[1673609633481,8.77463306,1409.0,1408.9,1.70391744]
[1673609634064,26.57542578,1409.0,1408.9,1.70391744]
[1673609634445,33.67265578,1409.0,1408.9,1.70391744]
[1673609634593,31.13021436,1409.0,1408.9,1.70391744]
[1673609635439,31.66261436,1409.0,1408.9,1.70391744]
[1673609635651,9.30703306,1409.0,1408.9,1.70391744]
[1673609636065,41.10782578,1409.0,1408.9,1.70391744]
[1673609636310,55.45105578,1409.0,1408.9,1.70391744]
[1673609636515,55.68105578,1409.0,1408.9,1.70391744]
[1673609636736,51.43505578,1409.0,1408.9,1.70391744]
[1673609637055,51.20505578,1409.0,1408.9,1.70391744]
[1673609637212,37.20505578,1409.0,1408.9,1.70391744]
[1673609637429,51.20505578,1409.0,1408.9,1.70391744]
[1673609637663,23.01059578,1409.0,1408.9,1.70391744]
[1673609638105,12.91336578,1409.0,1408.9,1.70391744]
[1673609638278,9.30703306,1409.0,1408.9,1.70391744]
[1673609638470,8.77463306,1409.0,1408.9,1.70391744]
[1673609638675,9.30703306,1409.0,1408.9,1.70391744]
[1673609639989,9.30498221,1409.0,1408.9,1.70391744]
[1673609640613,8.77258221,1409.0,1408.9,1.70391744]
[1673609640939,8.77258221,1409.0,1408.9,2.69676565]
[1673609641252,8.77258221,1409.0,1408.9,25.05029034]
[1673609641461,8.77258221,1409.0,1408.9,28.23569516]
[1673609642052,8.77258221,1409.0,1408.9,27.17536047]
[1673609642505,8.77258221,1409.0,1408.9,29.28123356]
[1673609642827,8.77258221,1409.0,1408.9,27.70182874]
[1673609643163,8.77258221,1409.0,1408.9,33.3341701]
[1673609643457,8.77258221,1409.0,1408.9,33.3502462]
[1673609643625,8.77258221,1409.0,1408.9,32.29358071]
[1673609643843,7.861178,1409.0,1408.9,32.29358071]
[1673609644999,7.861178,1409.0,1408.9,29.66123935]
[1673609645223,7.861178,1409.0,1408.9,32.9521048]
[1673609645559,7.861178,1409.0,1408.9,29.81583935]
[1673609645872,7.861178,1409.0,1408.9,33.26757207]
[1673609646049,7.861178,1409.0,1408.9,36.40383752]
[1673609646266,7.861178,1409.0,1408.9,35.92022532]
[1673609647955,3.343298,1409.0,1408.9,41.97030207]
[1673609648153,3.247298,1409.0,1408.9,42.20030207]
[1673609648553,3.247298,1409.0,1408.9,45.33656752]
[1673609649133,3.247298,1409.0,1408.9,42.20030207]
[1673609649285,3.247298,1409.0,1408.9,45.26745386]
[1673609649511,3.247298,1409.0,1408.9,45.94761773]
[1673609650372,1.76850186,1409.0,1408.9,45.94761773]
[1673609650578,1.76850186,1409.0,1408.9,50.83816401]
[1673609650793,1.76850186,1409.0,1408.9,46.24071773]
[1673609651827,1.76850186,1409.0,1408.9,46.1804073]
[1673609652355,0.25947868,1409.0,1408.9,46.1804073]
[1673609652770,0.25947868,1409.0,1408.9,45.69583753]
[1673609652984,0.25947868,1409.0,1408.9,41.20914185]
[1673609653242,0.25947868,1409.0,1408.9,43.86062839]
[1673609653646,0.25947868,1409.0,1408.9,42.88736452]
[1673609653938,0.23353082,1409.0,1408.9,42.88736452]
[1673609654385,0.23353082,1409.0,1408.9,43.94347413]
[1673609654609,0.23353082,1409.0,1408.9,40.33714141]
[1673609655628,0.23353082,1409.0,1408.9,40.38714141]
[1673609656401,0.23353082,1409.0,1408.9,39.33110587]
[1673609657728,0.23353082,1409.0,1408.9,39.28110587]
[1673609658887,1.70053082,1409.0,1408.9,34.68603087]
[1673609659114,1.70053082,1409.0,1408.9,34.15566329]
[1673609659292,0.23353082,1409.0,1408.9,34.15566329]
[1673609659496,1.70053082,1409.0,1408.9,27.05793329]
[1673609659706,1.70053082,1409.0,1408.9,24.46508508]
[1673609660124,0.23353082,1409.0,1408.9,24.46508508]
[1673609661386,1.70053082,1409.0,1408.9,10.26962508]
[1673609662491,1.70053082,1409.0,1408.9,4.23305563]
[1673609662676,1.70053082,1409.0,1408.9,2.6356539]
[1673609662877,0.23353082,1409.0,1408.9,11.32478563]
[1673609663134,0.23353082,1409.0,1408.9,11.32878563]
[1673609663283,0.23353082,1409.0,1408.9,11.33078563]
[1673609664144,0.23353082,1409.0,1408.9,10.26962508]
[1673609664494,0.23353082,1409.0,1408.9,19.48912439]
[1673609664702,0.23353082,1409.0,1408.9,17.36735508]
[1673609664912,0.23353082,1409.0,1408.9,19.48912439]
[1673609665912,0.23353082,1409.0,1408.9,10.26962508]
[1673609666152,1.70053082,1409.0,1408.9,4.23296741]
[1673609666483,1.70053082,1409.0,1408.9,4.22706144]
[1673609666699,1.70053082,1409.0,1408.9,4.22906154]
[1673609666700,0.23353082,1409.0,1408.9,4.22906154]
[1673609667495,1.70053082,1409.0,1408.9,4.22906154]
[1673609667928,1.70053082,1409.0,1408.9,2.63765981]
[1673609668236,3.73058569,1409.0,1408.9,2.63765981]
[1673609668571,3.73058569,1409.0,1408.9,1.57649345]
[1673609669189,3.73058569,1409.0,1408.9,2.63765981]
[1673609669190,1.70053082,1409.0,1408.9,2.63765981]
[1673609669393,1.70053082,1409.0,1408.9,1.57649345]
[1673609669841,1.70053082,1409.0,1408.9,2.63765981]